[Event "XLI Barbera del Valles Open 2018"]
[Site "Barbera del Valles"]
[Date "2018.07.04"]
[Round "1"]
[White "Karthik Venkataraman"]
[Black "Perez Campos, Adria"]
[Result "1/2-1/2"]
[ECO "B76"]
[WhiteElo "2514"]
[BlackElo "2207"]
[Annotator "ChessBase"]
[PlyCount "142"]
[EventDate "2018.07.04"]
[EventType "swiss"]
[EventCountry "ESP"]
[SourceTitle "playchess.com"]
[Source "ChessBase"]
[SourceQuality "1"]
[TimeControl "5400+30"]

1. e4 {[%emt 0:00:00]} c5 {[%emt 0:05:02]} 2. Nf3 {[%emt 0:00:00]} d6 {[%emt 0:00:12]} 3. d4 {[%emt 0:00:00]} cxd4 {[%emt 0:00:09]} 4. Nxd4 {[%emt 0:00:00]} Nf6 {[%emt 0:00:10]} 5. Nc3 {[%emt 0:00:00]} g6 {[%emt 0:00:06]} 6. Be3 {[%emt 0:00:20]} Bg7 {[%emt 0:00:11]} 7. f3 {[%emt 0:00:04]} O-O {[%emt 0:00:06]} 8. Qd2 {[%emt 0:00:03]} Nc6 {[%emt 0:00:11]} 9. O-O-O {[%emt 0:00:07]} d5 {[%emt 0:00:19]} 10. Qe1 {[%emt 0:00:17]} e5 {[%emt 0:03:59]} 11. Nxc6 {[%emt 0:00:06]} bxc6 {[%emt 0:00:05]} 12. exd5 {[%emt 0:00:05]} Nxd5 {[%emt 0:00:09]} 13. Bc4 {[%emt 0:00:20]} Be6 {[%emt 0:00:12]} 14. Ne4 {[%emt 0:00:06]} Qc7 {[%emt 0:01:18]} 15. Bc5 {[%emt 0:00:09]} Rfd8 {[%emt 0:00:12]} 16. Qh4 {[%emt 0:00:07]} h6 {[%emt 0:01:20]} 17. g4 {[%emt 0:00:05]} Nf4 {[%emt 0:01:40]} 18. Bxe6 {[%emt 0:03:15]} Nxe6 {[%emt 0:01:05]} 19. Be3 {[%emt 0:00:48]} Nf4 {[%emt 0:04:59]} 20. Qf2 {[%emt 0:02:55]} Rd5 {[%emt 0:10:27]} 21. Rd2 {[%emt 0:06:24]} Qa5 {[%emt 0:07:19]} 22. Kb1 {[%emt 0:03:39]} Rb8 {[%emt 0:07:16]} 23. c4 {[%emt 0:01:01]} Rd3 {[%emt 0:13:29]} 24. Bxf4 {[%emt 0:10:13]} Ra3 {[%emt 0:00:29]} 25. Qc5 {[%emt 0:01:33]} exf4 {[%emt 0:03:25]} 26. Qxa5 {[%emt 0:00:09]} Rxa5 {[%emt 0:00:03]} 27. Rhd1 {[%emt 0:00:07]} f5 {[%emt 0:00:35]} 28. gxf5 {[%emt 0:01:00]} Rxf5 {[%emt 0:00:10]} 29. b3 {[%emt 0:00:30]} Rh5 {[%emt 0:05:06]} 30. Rg2 {[%emt 0:00:25]} g5 {[%emt 0:02:02]} 31. Rd6 {[%emt 0:00:05]} Rh3 {[%emt 0:01:59]} 32. Rf2 {[%emt 0:07:06]} a5 {[%emt 0:04:00]} 33. Rxc6 {[%emt 0:01:41]} a4 {[%emt 0:00:34]} 34. Kc2 {[%emt 0:00:56]} axb3+ {[%emt 0:00:19]} 35. axb3 {[%emt 0:00:06]} Ra8 {[%emt 0:01:27]} 36. Kd3 {[%emt 0:08:08]} Ra1 {[%emt 0:00:58]} 37. c5 {[%emt 0:02:26]} g4 {[%emt 0:04:44]} 38. Rg6 {[%emt 0:08:09]} Rxf3+ {[%emt 0:04:40]} 39. Rxf3 {[%emt 0:00:08]} gxf3 {[%emt 0:00:03]} 40. Rg4 {[%emt 0:00:13]} Rd1+ {[%emt 0:03:11]} 41. Nd2 {[%emt 0:02:12]} Rc1 {[%emt 0:00:32]} 42. Rxf4 {[%emt 0:00:48]} Rxc5 {[%emt 0:03:40]} 43. Rxf3 {[%emt 0:00:07]} Rc3+ {[%emt 0:03:43]} 44. Ke4 {[%emt 0:01:02]} Rc2 {[%emt 0:00:23]} 45. Rd3 {[%emt 0:00:31]} Kf7 {[%emt 0:00:16]} 46. Kd5 {[%emt 0:00:37]} Rc3 {[%emt 0:01:50]} 47. Rxc3 {[%emt 0:00:22]} Bxc3 {[%emt 0:00:00]} 48. Ne4 {[%emt 0:00:14]} Be1 {[%emt 0:00:30]} 49. Nc5 {[%emt 0:01:20]} Kg6 {[%emt 0:01:08]} 50. Nd3 {[%emt 0:00:29]} Bd2 {[%emt 0:00:20]} 51. Ke4 {[%emt 0:00:35]} Kg5 {[%emt 0:00:32]} 52. Kf3 {[%emt 0:00:16]} Kf5 {[%emt 0:00:36]} 53. b4 {[%emt 0:00:10]} Bc3 {[%emt 0:00:31]} 54. b5 {[%emt 0:00:20]} Bd4 {[%emt 0:00:14]} 55. h3 {[%emt 0:00:35]} Bb6 {[%emt 0:01:49]} 56. Nb2 {[%emt 0:00:13]} Ke6 {[%emt 0:00:56]} 57. Ke4 {[%emt 0:02:02]} Bg1 {[%emt 0:01:02]} 58. Nc4 {[%emt 0:01:30]} Bh2 {[%emt 0:00:19]} 59. b6 {[%emt 0:03:51]} h5 {[%emt 0:01:59]} 60. Kd4 {[%emt 0:05:45]} Bg1+ {[%emt 0:01:52]} 61. Ke4 {[%emt 0:00:47]} Bh2 {[%emt 0:00:04]} 62. Nd2 {[%emt 0:02:59]} Kd6 {[%emt 0:02:36]} 63. Nf1 {[%emt 0:02:16]} Bg1 {[%emt 0:00:23]} 64. Ne3 {[%emt 0:00:13]} Kc6 {[%emt 0:00:10]} 65. Nd5 {[%emt 0:00:06]} h4 {[%emt 0:00:51]} 66. Ke5 {[%emt 0:00:15]} Bxb6 {[%emt 0:00:44]} 67. Nxb6 {[%emt 0:00:07]} Kxb6 {[%emt 0:00:02]} 68. Kf5 {[%emt 0:00:06]} Kc6 {[%emt 0:00:07]} 69. Kg5 {[%emt 0:00:05]} Kd6 {[%emt 0:00:06]} 70. Kxh4 {[%emt 0:00:05]} Ke6 {[%emt 0:00:06]} 71. Kg5 {[%emt 0:00:03]} Kf7 {[%emt 0:00:04]} 1/2-1/2

[Event "XLI Barbera del Valles Open 2018"]
[Site "Barbera del Valles"]
[Date "2018.07.04"]
[Round "1"]
[White "Munoz, Miguel"]
[Black "Sapale Saloni"]
[Result "1-0"]
[ECO "C03"]
[WhiteElo "2500"]
[BlackElo "2145"]
[Annotator "ChessBase"]
[PlyCount "99"]
[EventDate "2018.07.04"]
[EventType "swiss"]
[EventCountry "ESP"]
[SourceTitle "playchess.com"]
[Source "ChessBase"]
[SourceQuality "1"]
[TimeControl "5400+30"]

1. e4 {[%emt 0:12:16]} e6 {[%emt 0:01:34]} 2. d4 {[%emt 0:00:25]} d5 {[%emt 0:00:08]} 3. Nd2 h6 {[%emt 0:00:12]} 4. Ngf3 {[%emt 0:01:06]} Nf6 {[%emt 0:00:09]} 5. Bd3 {[%emt 0:00:39]} c5 {[%emt 0:00:19]} 6. exd5 {[%emt 0:04:18]} exd5 {[%emt 0:04:54]} 7. Qe2+ Be7 {[%emt 0:02:22]} 8. dxc5 {[%emt 0:00:43]} O-O {[%emt 0:00:10]} 9. Nb3 {[%emt 0:00:09]} Bxc5 {[%emt 0:10:06]} 10. Nxc5 {[%emt 0:00:31]} Qa5+ {[%emt 0:00:12]} 11. c3 {[%emt 0:01:13]} Qxc5 {[%emt 0:00:07]} 12. O-O {[%emt 0:03:07]} Nc6 {[%emt 0:06:34]} 13. Bf4 {[%emt 0:22:55]} Re8 {[%emt 0:19:11]} 14. Qd2 Ne4 {[%emt 0:01:19]} 15. Qc2 {[%emt 0:01:52]} Bg4 {[%emt 0:03:32]} 16. Be3 {[%emt 0:00:00]} Qd6 {[%emt 0:14:27]} 17. Nd4 {[%emt 0:02:59]} Nxd4 {[%emt 0:03:02]} 18. Bxd4 {[%emt 0:13:05]} Nc5 {[%emt 0:03:21]} 19. Rfe1 Nxd3 {[%emt 0:00:29]} 20. Qxd3 {[%emt 0:00:50]} a6 {[%emt 0:08:01]} 21. Bxg7 {[%emt 0:06:31]} Qf4 {[%emt 0:00:33]} 22. Bd4 {[%emt 0:06:12]} Bf5 {[%emt 0:05:43]} 23. Qd1 {[%emt 0:02:37]} Kh7 {[%emt 0:10:08]} 24. Qh5 {[%emt 0:02:36]} Be6 {[%emt 0:02:25]} 25. Re3 {[%emt 0:01:39]} Rg8 {[%emt 0:01:33]} 26. Rf3 {[%emt 0:03:38]} Qc7 {[%emt 0:00:37]} 27. Re1 {[%emt 0:00:19]} Rg5 {[%emt 0:00:25]} 28. Qh4 {[%emt 0:00:24]} Rag8 {[%emt 0:01:37]} 29. Rg3 Rxg3 {[%emt 0:00:05]} 30. hxg3 {[%emt 0:01:17]} Rg6 {[%emt 0:01:01]} 31. f4 f5 {[%emt 0:00:18]} 32. g4 {[%emt 0:04:18]} Qf7 {[%emt 0:00:05]} 33. gxf5 {[%emt 0:02:47]} Qxf5 {[%emt 0:00:45]} 34. Re5 {[%emt 0:00:14]} Qc2 {[%emt 0:00:18]} 35. Qe7+ {[%emt 0:07:48]} Kg8 {[%emt 0:00:42]} 36. Bf2 {[%emt 0:00:10]} Qd1+ {[%emt 0:00:04]} 37. Re1 {[%emt 0:00:12]} Qg4 {[%emt 0:01:07]} 38. g3 Qh3 {[%emt 0:00:05]} 39. Re3 {[%emt 0:01:03]} Qg4 40. Qe8+ Kh7 {[%emt 0:00:51]} 41. Qe7+ {[%emt 0:01:30]} Kg8 {[%emt 0:00:05]} 42. Qxb7 {[%emt 0:00:31]} Qd1+ {[%emt 0:01:37]} 43. Be1 d4 {[%emt 0:00:33]} 44. Qa8+ {[%emt 0:01:28]} Kh7 45. Qa7+ {[%emt 0:00:09]} Rg7 {[%emt 0:01:07]} 46. Qxd4 {[%emt 0:00:37]} Rxg3+ {[%emt 0:00:03]} 47. Rxg3 {[%emt 0:00:09]} Qxe1+ 48. Kh2 Qe2+ {[%emt 0:01:15]} 49. Rg2 {[%emt 0:00:40]} Qh5+ {[%emt 0:00:15]} 50. Kg1 1-0

[Event "XLI Barbera del Valles Open 2018"]
[Site "Barbera del Valles"]
[Date "2018.07.04"]
[Round "1"]
[White "Manolache, Marius"]
[Black "Rueda Marquez, David J"]
[Result "1-0"]
[ECO "A80"]
[WhiteElo "2494"]
[BlackElo "2110"]
[Annotator "ChessBase"]
[PlyCount "55"]
[EventDate "2018.07.04"]
[EventType "swiss"]
[EventCountry "ESP"]
[SourceTitle "playchess.com"]
[Source "ChessBase"]
[SourceQuality "1"]
[TimeControl "5400+30"]

1. d4 {[%emt 0:00:00]} f5 {[%emt 0:00:00]} 2. Nc3 {[%emt 0:00:00]} Nf6 {[%emt 0:00:00]} 3. Bg5 {[%emt 0:00:00]} d5 {[%emt 0:00:00]} 4. Bxf6 {[%emt 0:00:01]} exf6 {[%emt 0:00:05]} 5. e3 {[%emt 0:00:06]} Be6 {[%emt 0:00:11]} 6. Bb5+ {[%emt 0:00:16]} c6 {[%emt 0:00:13]} 7. Bd3 {[%emt 0:00:07]} Qb6 {[%emt 0:00:13]} 8. Nge2 {[%emt 0:00:18]} Bd6 {[%emt 0:20:17]} 9. Na4 {[%emt 0:01:28]} Qc7 {[%emt 0:05:12]} 10. Qd2 {[%emt 0:00:10]} Nd7 {[%emt 0:08:54]} 11. Nf4 {[%emt 0:00:38]} Bxf4 {[%emt 0:00:41]} 12. exf4 {[%emt 0:00:06]} O-O-O {[%emt 0:03:18]} 13. O-O {[%emt 0:00:58]} g6 {[%emt 0:06:45]} 14. b4 {[%emt 0:00:32]} h5 {[%emt 0:01:15]} 15. Rfb1 {[%emt 0:01:08]} b6 {[%emt 0:10:32]} 16. Nc5 {[%emt 0:05:02]} bxc5 {[%emt 0:00:05]} 17. Ba6+ {[%emt 0:00:05]} Kb8 {[%emt 0:00:03]} 18. bxc5+ {[%emt 0:00:06]} Ka8 {[%emt 0:00:05]} 19. Bb7+ {[%emt 0:00:12]} Qxb7 {[%emt 0:00:03]} 20. Rxb7 {[%emt 0:00:06]} Kxb7 {[%emt 0:00:03]} 21. Qe2 {[%emt 0:00:21]} Rhe8 {[%emt 0:13:41]} 22. Rb1+ {[%emt 0:00:11]} Kc7 {[%emt 0:06:52]} 23. Qa6 {[%emt 0:00:06]} Rb8 {[%emt 0:04:57]} 24. Qxa7+ {[%emt 0:00:07]} Kc8 {[%emt 0:00:05]} 25. Rb6 {[%emt 0:00:18]} Bg8 {[%emt 0:13:20]} 26. Rxc6+ {[%emt 0:02:10]} Kd8 {[%emt 0:00:05]} 27. Qc7+ {[%emt 0:01:14]} Ke7 {[%emt 0:00:03]} 28. h4 {[%emt 0:01:28]} 1-0

[Event "XLI Barbera del Valles Open 2018"]
[Site "Barbera del Valles"]
[Date "2018.07.04"]
[Round "1"]
[White "Nieto Farreny, Francesc"]
[Black "Asis, Tommy"]
[Result "1/2-1/2"]
[ECO "E46"]
[WhiteElo "2177"]
[BlackElo "2538"]
[Annotator "ChessBase"]
[PlyCount "130"]
[EventDate "2018.07.04"]
[EventType "swiss"]
[EventCountry "ESP"]
[SourceTitle "playchess.com"]
[Source "ChessBase"]
[SourceQuality "1"]
[TimeControl "5400+30"]

1. d4 {[%emt 0:00:00]} Nf6 2. c4 {[%emt 0:00:00]} e6 {[%emt 0:00:00]} 3. Nc3 {[%emt 0:00:00]} Bb4 {[%emt 0:00:00]} 4. e3 {[%emt 0:00:36]} O-O {[%emt 0:00:27]} 5. Nge2 {[%emt 0:01:14]} Re8 {[%emt 0:00:49]} 6. a3 {[%emt 0:00:37]} Bf8 {[%emt 0:01:20]} 7. d5 {[%emt 0:03:46]} a5 {[%emt 0:01:31]} 8. Ng3 {[%emt 0:03:39]} Na6 {[%emt 0:12:01]} 9. Be2 {[%emt 0:05:41]} Nc5 {[%emt 0:05:41]} 10. b3 {[%emt 0:12:41]} d6 {[%emt 0:17:56]} 11. O-O {[%emt 0:00:57]} exd5 {[%emt 0:17:48]} 12. cxd5 {[%emt 0:10:18]} g6 {[%emt 0:14:50]} 13. Qc2 {[%emt 0:35:18]} h5 {[%emt 0:00:35]} 14. Bb5 {[%emt 0:00:24]} Bd7 {[%emt 0:00:05]} 15. Bxd7 {[%emt 0:02:44]} Qxd7 {[%emt 0:06:52]} 16. f3 {[%emt 0:02:14]} Bg7 {[%emt 0:11:30]} 17. Rb1 {[%emt 0:08:08]} c6 {[%emt 0:00:34]} 18. b4 h4 19. Nge2 {[%emt 0:04:19]} axb4 {[%emt 0:00:56]} 20. axb4 {[%emt 0:00:02]} Na6 {[%emt 0:00:15]} 21. Rd1 {[%emt 0:00:55]} c5 {[%emt 0:01:20]} 22. bxc5 {[%emt 0:00:40]} Nxc5 {[%emt 0:01:20]} 23. e4 {[%emt 0:01:49]} Rac8 {[%emt 0:01:27]} 24. Qd2 {[%emt 0:01:29]} h3 {[%emt 0:01:21]} 25. g4 Na4 {[%emt 0:00:05]} 26. Nxa4 {[%emt 0:02:59]} Qxa4 {[%emt 0:01:15]} 27. Rb4 {[%emt 0:00:44]} Qa7+ {[%emt 0:00:23]} 28. Qe3 {[%emt 0:00:39]} Qa5 29. Qb6 {[%emt 0:00:01]} Qxb6+ {[%emt 0:02:14]} 30. Rxb6 {[%emt 0:01:33]} Rc2 {[%emt 0:00:10]} 31. Kf1 {[%emt 0:00:55]} Ra8 32. Rd2 Rxd2 {[%emt 0:01:14]} 33. Bxd2 {[%emt 0:00:31]} Ra2 {[%emt 0:00:07]} 34. Bc3 Nh7 35. Bxg7 {[%emt 0:00:49]} Kxg7 {[%emt 0:01:03]} 36. Rxb7 {[%emt 0:00:03]} Ra3 {[%emt 0:00:00]} 37. Kf2 {[%emt 0:01:12]} Ng5 {[%emt 0:00:00]} 38. Nd4 {[%emt 0:01:18]} Kf6 {[%emt 0:00:42]} 39. Kg3 {[%emt 0:00:24]} Rd3 40. Rb4 {[%emt 0:00:05]} Nxe4+ {[%emt 0:01:12]} 41. Kxh3 {[%emt 0:00:36]} Nc3 {[%emt 0:00:59]} 42. Rb3 {[%emt 0:00:27]} Ke5 {[%emt 0:00:15]} 43. Nc6+ {[%emt 0:01:00]} Kf4 44. Nd4 {[%emt 0:00:01]} Ke3 {[%emt 0:01:43]} 45. Nb5 Nxb5 {[%emt 0:00:11]} 46. Rxb5 {[%emt 0:00:31]} Kxf3 {[%emt 0:00:49]} 47. Rb7 {[%emt 0:01:36]} f5 {[%emt 0:00:49]} 48. Rg7 Kf4+ 49. Kh4 {[%emt 0:00:43]} fxg4 {[%emt 0:01:04]} 50. Rf7+ {[%emt 0:00:00]} Ke5 {[%emt 0:00:00]} 51. Kxg4 Kxd5 {[%emt 0:00:00]} 52. Rg7 {[%emt 0:00:53]} Rd2 53. Kf3 {[%emt 0:00:11]} Rxh2 {[%emt 0:00:43]} 54. Rxg6 Kc5 {[%emt 0:00:00]} 55. Ke3 {[%emt 0:00:44]} d5 56. Rg8 {[%emt 0:00:27]} Rh3+ {[%emt 0:00:27]} 57. Kd2 {[%emt 0:00:12]} Kc4 58. Rd8 {[%emt 0:01:32]} Rh2+ {[%emt 0:00:12]} 59. Ke3 {[%emt 0:00:04]} Rh3+ {[%emt 0:00:06]} 60. Kd2 {[%emt 0:00:02]} Kd4 {[%emt 0:00:00]} 61. Rd7 Rh2+ {[%emt 0:00:00]} 62. Kd1 {[%emt 0:00:55]} Kc4 {[%emt 0:00:00]} 63. Rg7 d4 64. Rg3 {[%emt 0:02:29]} d3 {[%emt 0:00:26]} 65. Rg8 Kd5 1/2-1/2

[Event "XLI Barbera del Valles Open 2018"]
[Site "Barbera del Valles"]
[Date "2018.07.04"]
[Round "1"]
[White "Porta Tovar, Guillem"]
[Black "Stella, Andrea"]
[Result "1/2-1/2"]
[ECO "A02"]
[WhiteElo "2160"]
[BlackElo "2504"]
[Annotator "ChessBase"]
[PlyCount "90"]
[EventDate "2018.07.04"]
[EventType "swiss"]
[EventCountry "ESP"]
[SourceTitle "playchess.com"]
[Source "ChessBase"]
[SourceQuality "1"]
[TimeControl "5400+30"]

1. f4 {[%emt 0:00:00]} e5 {[%emt 0:00:27]} 2. fxe5 {[%emt 0:01:18]} d6 3. g3 {[%emt 0:14:46]} dxe5 {[%emt 0:04:17]} 4. Bg2 {[%emt 0:06:58]} h5 {[%emt 0:01:20]} 5. Nc3 {[%emt 0:00:04]} h4 6. e3 hxg3 {[%emt 0:14:16]} 7. hxg3 {[%emt 0:04:56]} Rxh1 {[%emt 0:00:06]} 8. Bxh1 {[%emt 0:00:04]} Qg5 {[%emt 0:05:19]} 9. Qf3 Nc6 10. Qf2 {[%emt 0:06:14]} Nf6 11. Bxc6+ bxc6 12. Qg2 {[%emt 0:29:29]} Nd5 {[%emt 0:16:12]} 13. e4 {[%emt 0:01:44]} Nxc3 {[%emt 0:06:46]} 14. bxc3 {[%emt 0:00:55]} Rb8 {[%emt 0:01:30]} 15. Qf2 {[%emt 0:02:35]} c5 {[%emt 0:16:52]} 16. d3 {[%emt 0:03:07]} Qh5 {[%emt 0:05:53]} 17. Ba3 Rb6 18. Bxc5 {[%emt 0:09:33]} Rf6 {[%emt 0:03:22]} 19. Qe3 Bxc5 {[%emt 0:09:48]} 20. Qxc5 {[%emt 0:00:04]} Qg5 {[%emt 0:03:15]} 21. Ne2 {[%emt 0:02:45]} Rh6 22. Qf2 {[%emt 0:04:19]} Rh1+ {[%emt 0:05:28]} 23. Ng1 {[%emt 0:00:01]} Qh6 {[%emt 0:01:03]} 24. Qxa7 {[%emt 0:04:25]} Rh2 {[%emt 0:03:39]} 25. Ne2 {[%emt 0:01:17]} Rh1+ {[%emt 0:00:08]} 26. Ng1 {[%emt 0:00:01]} Rh2 {[%emt 0:00:03]} 27. Ne2 {[%emt 0:00:04]} Rxe2+ {[%emt 0:02:29]} 28. Kxe2 {[%emt 0:00:02]} Bg4+ {[%emt 0:00:09]} 29. Kf1 {[%emt 0:02:52]} Qh3+ 30. Kf2 {[%emt 0:01:00]} Qh2+ {[%emt 0:00:35]} 31. Kf1 {[%emt 0:00:41]} Qh3+ {[%emt 0:01:10]} 32. Kf2 {[%emt 0:00:06]} Qh2+ {[%emt 0:00:08]} 33. Kf1 {[%emt 0:00:01]} Bh3+ {[%emt 0:01:04]} 34. Ke1 {[%emt 0:00:04]} Qh1+ {[%emt 0:00:05]} 35. Kd2 {[%emt 0:00:01]} Qxa1 {[%emt 0:00:04]} 36. Qb8+ {[%emt 0:00:03]} Kd7 {[%emt 0:01:21]} 37. Qb5+ {[%emt 0:00:02]} Kd8 {[%emt 0:01:05]} 38. Qd5+ {[%emt 0:00:13]} Bd7 {[%emt 0:00:24]} 39. Qxf7 {[%emt 0:00:03]} Qg1 {[%emt 0:00:17]} 40. Qg8+ {[%emt 0:00:12]} Be8 {[%emt 0:00:06]} 41. Qd5+ {[%emt 0:00:07]} Bd7 42. Qg8+ {[%emt 0:02:14]} Be8 {[%emt 0:01:36]} 43. Qd5+ {[%emt 0:00:09]} Bd7 {[%emt 0:00:14]} 44. Qg8+ {[%emt 0:00:57]} Be8 {[%emt 0:00:17]} 45. Qd5+ {[%emt 0:00:05]} Bd7 {[%emt 0:00:24]} 1/2-1/2

[Event "XLI Barbera del Valles Open 2018"]
[Site "Barbera del Valles"]
[Date "2018.07.04"]
[Round "1"]
[White "Deshpande, Aniruddha"]
[Black "Vasquez Schroeder, Rodrigo"]
[Result "0-1"]
[ECO "A62"]
[WhiteElo "2132"]
[BlackElo "2494"]
[Annotator "ChessBase"]
[PlyCount "112"]
[EventDate "2018.07.04"]
[EventType "swiss"]
[EventCountry "ESP"]
[SourceTitle "playchess.com"]
[Source "ChessBase"]
[SourceQuality "1"]
[TimeControl "5400+30"]

1. d4 {[%emt 0:00:57]} Nf6 {[%emt 0:00:00]} 2. c4 {[%emt 0:00:05]} e6 {[%emt 0:00:00]} 3. g3 {[%emt 0:00:10]} c5 {[%emt 0:00:18]} 4. d5 {[%emt 0:00:09]} exd5 {[%emt 0:00:07]} 5. cxd5 {[%emt 0:00:04]} d6 {[%emt 0:00:06]} 6. Nc3 {[%emt 0:00:35]} g6 {[%emt 0:00:12]} 7. Bg2 {[%emt 0:00:12]} Bg7 {[%emt 0:00:03]} 8. Nf3 {[%emt 0:00:32]} O-O {[%emt 0:00:07]} 9. O-O {[%emt 0:00:03]} Bf5 10. Nd2 {[%emt 0:12:30]} Qd7 {[%emt 0:08:05]} 11. a4 {[%emt 0:10:00]} Bh3 {[%emt 0:02:27]} 12. Nc4 {[%emt 0:00:59]} Bxg2 {[%emt 0:02:34]} 13. Kxg2 {[%emt 0:00:07]} Qe7 {[%emt 0:01:49]} 14. f3 {[%emt 0:13:07]} Na6 {[%emt 0:05:00]} 15. Bf4 {[%emt 0:01:30]} Rfd8 {[%emt 0:00:22]} 16. Nb5 {[%emt 0:03:34]} Ne8 {[%emt 0:00:59]} 17. Ra3 {[%emt 0:01:49]} Bf8 {[%emt 0:51:54]} 18. Re3 {[%emt 0:13:31]} Qd7 {[%emt 0:00:24]} 19. Rxe8 {[%emt 0:05:00]} Rxe8 {[%emt 0:01:03]} 20. Nbxd6 {[%emt 0:05:07]} Red8 {[%emt 0:00:37]} 21. h4 Nb4 {[%emt 0:01:22]} 22. e4 {[%emt 0:14:43]} f6 {[%emt 0:00:48]} 23. g4 {[%emt 0:03:02]} Qc7 {[%emt 0:02:07]} 24. e5 {[%emt 0:06:37]} fxe5 {[%emt 0:00:10]} 25. Nb5 {[%emt 0:00:38]} Qf7 {[%emt 0:00:27]} 26. Bxe5 {[%emt 0:02:02]} Rxd5 {[%emt 0:01:13]} 27. Qe1 {[%emt 0:03:39]} Re8 {[%emt 0:01:49]} 28. Qg3 {[%emt 0:01:12]} Qd7 {[%emt 0:02:06]} 29. Nc3 {[%emt 0:00:39]} Nc6 {[%emt 0:03:27]} 30. Ne4 {[%emt 0:00:52]} Be7 {[%emt 0:00:45]} 31. Bc3 {[%emt 0:00:39]} Rf8 {[%emt 0:00:50]} 32. h5 {[%emt 0:00:18]} g5 {[%emt 0:05:29]} 33. Ne3 {[%emt 0:00:25]} Rd3 {[%emt 0:00:17]} 34. Nf5 {[%emt 0:00:48]} Rxf5 {[%emt 0:00:10]} 35. gxf5 {[%emt 0:00:02]} Qxf5 {[%emt 0:00:18]} 36. Qg4 {[%emt 0:00:30]} Nd4 {[%emt 0:02:32]} 37. Ng3 {[%emt 0:00:17]} Qxg4 {[%emt 0:01:20]} 38. fxg4 {[%emt 0:00:05]} Bd6 {[%emt 0:01:24]} 39. Ne4 {[%emt 0:00:40]} Be7 {[%emt 0:01:10]} 40. Ng3 {[%emt 0:00:03]} Ne6 {[%emt 0:00:11]} 41. Nf5 {[%emt 0:01:15]} Bf8 {[%emt 0:00:07]} 42. Be5 {[%emt 0:00:45]} Rd5 {[%emt 0:00:22]} 43. Re1 {[%emt 0:00:37]} Kf7 {[%emt 0:00:06]} 44. Kf3 {[%emt 0:00:21]} c4 {[%emt 0:01:47]} 45. Ke4 {[%emt 0:00:22]} Rd3 {[%emt 0:00:15]} 46. Bd4 {[%emt 0:00:45]} Nxd4 {[%emt 0:01:47]} 47. Nxd4 {[%emt 0:00:04]} Bg7 {[%emt 0:00:37]} 48. Nf3 Bxb2 {[%emt 0:01:56]} 49. Rb1 {[%emt 0:01:57]} Rxf3 {[%emt 0:00:36]} 50. Rxb2 {[%emt 0:00:22]} Rf4+ {[%emt 0:00:19]} 51. Ke5 {[%emt 0:00:06]} b6 {[%emt 0:00:06]} 52. a5 {[%emt 0:01:36]} c3 {[%emt 0:00:19]} 53. Rb3 {[%emt 0:00:09]} Rc4 {[%emt 0:00:41]} 54. axb6 {[%emt 0:00:12]} axb6 {[%emt 0:00:05]} 55. Rxb6 {[%emt 0:00:31]} c2 {[%emt 0:00:19]} 56. Rb7+ {[%emt 0:00:12]} Ke8 {[%emt 0:00:05] Kd4} 0-1

[Event "XLI Barbera del Valles Open 2018"]
[Site "Barbera del Valles"]
[Date "2018.07.05"]
[Round "2"]
[White "Alsina Leal, Daniel"]
[Black "Cruz, Filemon"]
[Result "1-0"]
[ECO "B90"]
[WhiteElo "2492"]
[BlackElo "2314"]
[Annotator "ChessBase"]
[PlyCount "87"]
[EventDate "2018.07.04"]
[EventType "swiss"]
[EventCountry "ESP"]
[SourceTitle "playchess.com"]
[Source "ChessBase"]
[SourceQuality "1"]
[TimeControl "5400+30"]

1. e4 c5 2. Nf3 d6 3. d4 cxd4 4. Nxd4 Nf6 5. Nc3 a6 6. Be3 e5 7. Nb3 Be7 8. f3 Be6 9. Qd2 Nbd7 10. g4 h6 11. O-O-O Qc7 12. h4 Nb6 13. Qf2 Nfd7 14. Kb1 h5 15. Nd5 Bxd5 16. exd5 Nc4 17. Bc1 Rc8 18. Bd3 g6 19. Qe2 Kf8 20. Rdf1 Ndb6 21. f4 Nxd5 22. fxe5 dxe5 23. gxh5 Na3+ 24. Ka1 Nxc2+ 25. Bxc2 Qxc2 26. Qxe5 Rxh5 27. Bg5 Bxg5 28. hxg5 Rxh1 29. Rxh1 Ne7 30. Re1 Qc7 31. Qh8+ Ng8 32. Qh4 Qc4 33. Qg3 Qd5 34. a3 a5 35. Nc1 Qd2 36. Nd3 a4 37. Qd6+ Kg7 38. Qd7 Rf8 39. Qd4+ f6 40. Rg1 Qh2 41. Nf4 Rf7 42. gxf6+ Kh7 43. Rxg6 Qc2 44. Qg1 1-0

[Event "XLI Barbera del Valles Open 2018"]
[Site "Barbera del Valles"]
[Date "2018.07.05"]
[Round "2"]
[White "Valenzuela Gomez, Fernando"]
[Black "Ortiz Suarez, Isan Reynaldo"]
[Result "0-1"]
[ECO "B94"]
[WhiteElo "2389"]
[BlackElo "2548"]
[Annotator "ChessBase"]
[PlyCount "96"]
[EventDate "2018.07.04"]
[EventType "swiss"]
[EventCountry "ESP"]
[SourceTitle "playchess.com"]
[Source "ChessBase"]
[SourceQuality "1"]
[TimeControl "5400+30"]

1. e4 {[%emt 0:08:21]} c5 {[%emt 0:08:17]} 2. Nf3 {[%emt 0:00:33]} d6 {[%emt 0:00:10]} 3. d4 {[%emt 0:00:12]} cxd4 {[%emt 0:00:06]} 4. Nxd4 {[%emt 0:00:04]} Nf6 {[%emt 0:00:06]} 5. Nc3 {[%emt 0:00:05]} a6 {[%emt 0:00:04]} 6. Bg5 {[%emt 0:00:20]} Nbd7 {[%emt 0:02:48]} 7. Qe2 {[%emt 0:01:29]} h6 {[%emt 0:00:38]} 8. Bh4 {[%emt 0:00:29]} b5 {[%emt 0:02:00]} 9. f4 {[%emt 0:03:41]} g5 {[%emt 0:00:15]} 10. fxg5 {[%emt 0:03:40]} hxg5 {[%emt 0:00:06]} 11. Bxg5 {[%emt 0:00:25]} Bb7 {[%emt 0:00:32]} 12. O-O-O {[%emt 0:05:40]} e6 {[%emt 0:02:10]} 13. g3 {[%emt 0:10:08]} Rg8 {[%emt 0:11:25]} 14. h4 {[%emt 0:04:59]} b4 {[%emt 0:02:06]} 15. Nd5 {[%emt 0:05:48]} exd5 {[%emt 0:00:45]} 16. Nc6 {[%emt 0:02:35]} Bxc6 {[%emt 0:02:42]} 17. exd5+ {[%emt 0:00:17]} Ne5 {[%emt 0:01:37]} 18. dxc6 {[%emt 0:01:06]} Be7 {[%emt 0:01:37]} 19. Bh3 {[%emt 0:07:28]} Qa5 {[%emt 0:11:41]} 20. Rhf1 {[%emt 0:15:54]} Qxa2 {[%emt 0:18:39]} 21. Bxf6 {[%emt 0:03:33]} Bxf6 {[%emt 0:00:18]} 22. Rxf6 {[%emt 0:02:30]} Qa1+ {[%emt 0:00:13]} 23. Kd2 {[%emt 0:00:02]} Qxb2 {[%emt 0:00:06]} 24. Rf3 {[%emt 0:05:57]} Qd4+ {[%emt 0:11:31]} 25. Kc1 {[%emt 0:00:51]} Qa1+ {[%emt 0:01:21]} 26. Kd2 {[%emt 0:00:05]} Qa5 {[%emt 0:00:22]} 27. Rb3 {[%emt 0:02:34]} Qc5 {[%emt 0:10:52]} 28. Qe4 {[%emt 0:01:23]} Qxc6 {[%emt 0:02:58]} 29. Qxc6+ {[%emt 0:02:40]} Nxc6 {[%emt 0:00:04]} 30. Bg2 {[%emt 0:01:01]} Rc8 {[%emt 0:00:05]} 31. Ra1 {[%emt 0:03:13]} Nd4 {[%emt 0:01:43]} 32. Re3+ {[%emt 0:00:03]} Kf8 {[%emt 0:00:08]} 33. Be4 {[%emt 0:00:51]} d5 {[%emt 0:00:52]} 34. Bd3 {[%emt 0:00:51]} b3 {[%emt 0:02:40]} 35. c3 {[%emt 0:01:05]} b2 {[%emt 0:00:49]} 36. Rb1 {[%emt 0:01:33]} Nb3+ {[%emt 0:00:24]} 37. Ke2 {[%emt 0:02:04]} Rxc3 {[%emt 0:00:20]} 38. Rxb2 {[%emt 0:03:44]} a5 {[%emt 0:01:28]} 39. Kf2 {[%emt 0:01:29]} a4 {[%emt 0:02:38]} 40. Rc2 {[%emt 0:00:28]} Rc5 {[%emt 0:02:06]} 41. Ra2 {[%emt 0:00:32]} Rg4 {[%emt 0:00:29]} 42. Bc2 {[%emt 0:00:22]} Rb4 {[%emt 0:00:48]} 43. Bxb3 {[%emt 0:00:31]} axb3 {[%emt 0:00:29]} 44. Rb2 {[%emt 0:00:13]} Rc2+ {[%emt 0:00:35]} 45. Re2 {[%emt 0:00:10]} Rc3 {[%emt 0:00:33]} 46. Rb1 {[%emt 0:00:34]} Kg7 {[%emt 0:00:39]} 47. Rbb2 {[%emt 0:00:53]} Kg6 {[%emt 0:00:28]} 48. Re7 {[%emt 0:00:28]} Re4 {[%emt 0:00:30]} 0-1